{"text_format":"1","workbook":"xlsx","n_sheets":1,"sheets":["школы гимназии лицеи МУК"],"not_rendered":{"charts":0,"images":0,"macros":0,"external_links":0,"defined_names":1,"comments":0,"pivot_tables":0},"unopened":[],"bounds":{"document_bytes":16777216,"sheet_cells":100000,"rows_first":2000,"rows_last":500,"rows_between":2000,"halvings":0,"cell_chars":16384,"cell_head_chars":4096},"cells_cut":0,"cells_raw":0,"read":"whole","date_system":"1900"}

{"sheet":"школы гимназии лицеи МУК","index":0,"n_rows":230,"n_cols":48,"rows_kept":230,"cut":false,"hidden":false,"merged":[[123,0,124,0],[125,0,126,0],[157,0,158,0],[146,0,147,0],[148,0,149,0],[150,0,151,0],[127,0,128,0],[140,0,141,0],[144,0,145,0],[152,0,153,0],[222,0,223,1],[0,0,0,7],[114,0,115,0],[116,0,117,0],[118,0,119,0],[120,0,121,0],[129,0,130,0],[131,0,132,0],[135,0,136,0],[138,0,139,0],[154,0,155,0],[163,0,164,0],[165,0,166,0],[167,0,168,0],[170,0,171,0],[159,0,160,0],[172,0,173,0],[174,0,175,0],[176,0,177,0],[178,0,179,0],[180,0,181,0],[183,0,184,0],[185,0,186,0],[187,0,188,0],[189,0,190,0],[191,0,192,0],[196,0,197,0],[199,0,200,0],[202,0,203,0],[204,0,205,0],[216,0,216,1],[206,0,207,0],[208,0,209,0],[210,0,211,0],[213,0,213,1],[214,0,214,1],[215,0,215,1],[50,0,51,0],[52,0,53,0],[21,0,22,0],[24,0,25,0],[28,0,29,0],[31,0,32,0],[33,0,34,0],[36,0,37,0],[38,0,39,0],[40,0,41,0],[42,0,43,0],[44,0,45,0],[47,0,48,0],[78,0,79,0],[80,0,81,0],[56,0,57,0],[58,0,59,0],[60,0,61,0],[62,0,63,0],[64,0,65,0],[76,0,77,0],[66,0,67,0],[107,0,107,1],[108,0,108,1],[82,0,83,0],[84,0,85,0],[88,0,89,0],[91,0,92,0],[94,0,95,0],[96,0,97,0],[223,5,223,25],[113,0,113,25],[109,0,109,1],[19,0,20,0],[17,0,18,0],[15,0,16,0],[98,0,99,0],[101,0,102,0],[103,0,104,0],[106,0,106,1],[2,0,2,25],[11,0,12,0],[9,0,10,0],[7,0,8,0],[6,0,6,25],[221,5,221,25],[13,0,14,0],[68,0,69,0],[70,0,71,0],[73,0,74,0]]}
[null,null,null,null,null,null,null,null,null,null,null,null,null,null,null,null,null,null,null,"Приложение 2"]
[null,null,null,null,null,null,null,null,null,null,null,null,null,null,null,null,null,null,null,"к акту от 26.03.2014"]
["Результаты контроля за исполнением муниципального задания на оказание муниципальных услуг муниципальным бюджетным общеобразовательным учреждениям, учреждениям для детей дошкольного и младшего школьного возраста, муниципальному бюджетному образовательному учреждению межшкольному учебному комбинату «Центр индивидуального развития\" в 2013 году"]
[]
["    Наименование показателя    ","Плановое значение показателя установлено / исполнено","n-2 год*","n-1 год*","Гимназия \"ЛС\"","Гимназия №2","Гимназия им. ФКС","Гимназия №4","Лицей №1","Лицей №2","Лицей №3","Лицей им.ХВИ","СОШ №10  с УИОП","СОШ №12  с УИОП","СОШ №46  с УИОП","СОШ №1","СОШ №3","СОШ №4","СОШ №5","СОШ №6","СОШ №7","СОШ №8 им. Сибирцева АН","СОШ №13","СОШ №15","СОШ №18","СОШ №19"]
["Общие требования к деятельности муниципального учреждения по оказанию муниципальных услуг (выполнению работ)"]
["Соблюдение норм законодательства Российской Федерации, Ханты-Мансийского автономного округа - Югры, муниципальных правовых актов города Сургута в части, касающейся деятельности муниципального учреждения по оказанию муниципальных услуг"]
["1. Количество предъявленных исковых требований         ","устан.",null,null,1,1,1,1,1,1,1,1,1,1,1,1,1,1,1,1,1,1,1,1,1,1,null,null,null,null,null,null,null,null,null,null,null,null,null,null,null,null,null,null,null,null,null,{"$f":"SUM(E8:AU8)","v":22}]
[null,"исполн.",null,null,1,1,1,1,1,1,1,1,1,1,1,1,1,1,1,1,1,1,1,1,1,1,null,null,null,null,null,null,null,null,null,null,null,null,null,null,null,null,null,null,null,null,null,{"$f":"SUM(E9:AU9)","v":22}]
[]
[]
["2. Количество пунктов предписаний со стороны контрольных и надзорных органов исполнительной власти за нарушения организационного характера     ","устан.",null,null,1,1,1,1,1,1,1,1,1,1,1,1,1,1,1,1,1,1,1,1,1,1,null,null,null,null,null,null,null,null,null,null,null,null,null,null,null,null,null,null,null,null,null,{"$f":"SUM(E12:AU12)","v":22}]
[null,"исполн.",null,null,1,1,1,1,1,1,1,1,1,1,1,1,1,1,1,1,1,1,1,1,1,1,null,null,null,null,null,null,null,null,null,null,null,null,null,null,null,null,null,null,null,null,null,22]
["3. Количество и объем штрафных санкций со стороны контрольных и надзорных органов исполнительной власти,                          ","устан.",null,null,1,1,1,1,1,1,1,1,1,1,1,1,1,1,1,1,1,1,1,1,1,1,null,null,null,null,null,null,null,null,null,null,null,null,null,null,null,null,null,null,null,null,null,22]
[null,"исполн.",null,null,1,1,1,1,1,1,1,1,1,1,1,1,1,1,1,1,1,1,1,1,1,1,null,null,null,null,null,null,null,null,null,null,null,null,null,null,null,null,null,null,null,null,null,22]
["из них за нарушения организационного характера     ","устан.",null,null,1,1,1,1,1,1,1,1,1,1,1,1,1,1,1,1,1,1,1,1,1,1,null,null,null,null,null,null,null,null,null,null,null,null,null,null,null,null,null,null,null,null,null,22]
[null,"исполн.",null,null,1,1,1,1,1,1,1,1,1,1,1,1,1,1,1,1,1,1,1,1,1,1,null,null,null,null,null,null,null,null,null,null,null,null,null,null,null,null,null,null,null,null,null,22]
["4. Количество выявленных нарушений в актах проверок деятельности на предмет соответствия его деятельности нормам законодательства ","устан.",null,null,1,1,1,1,1,1,1,1,1,1,1,1,1,1,1,1,1,1,1,1,1,1,null,null,null,null,null,null,null,null,null,null,null,null,null,null,null,null,null,null,null,null,null,22]
[null,"исполн.",null,null,1,1,1,1,1,1,0,1,0,1,1,0,0,1,0,0,1,0,0,1,1,1,null,null,null,null,null,null,null,null,null,null,null,null,null,null,null,null,null,null,null,null,null,14]
["5. Количество выявленных фактов принятия денежных обязательств, не обеспеченных источниками финансирования               ","устан.",null,null,1,1,1,1,1,1,1,1,1,1,1,1,1,1,1,1,1,1,1,1,1,1,null,null,null,null,null,null,null,null,null,null,null,null,null,null,null,null,null,null,null,null,null,22]
[null,"исполн.",null,null,1,1,1,1,1,1,1,1,1,1,1,1,1,1,1,1,1,1,1,1,1,1,null,null,null,null,null,null,null,null,null,null,null,null,null,null,null,null,null,null,null,null,null,22]
["6. Количество требований со стороны третьих лиц по выполнению принятых денежных обязательств, не обеспеченных источниками финансирования (либо число требований со стороны третьих лиц, размер предъявленных требований в части, не обеспеченной источниками финансирования)","устан.",null,null,1,1,1,1,1,1,1,1,1,1,1,1,1,1,1,1,1,1,1,1,1,1,null,null,null,null,null,null,null,null,null,null,null,null,null,null,null,null,null,null,null,null,null,22]
[null,"исполн.",null,null,1,1,1,1,1,1,1,1,1,1,1,1,1,1,1,1,1,1,1,1,1,1,null,null,null,null,null,null,null,null,null,null,null,null,null,null,null,null,null,null,null,null,null,22]
["    Наименование показателя    ","Плановое значение показателя установлено / исполнено","n-2 год*","n-1 год*","Гимназия \"ЛС\"","Гимназия №2","Гимназия им. ФКС","Гимназия №4","Лицей №1","Лицей №2","Лицей №3","Лицей им.ХВИ","СОШ №10  с УИОП","СОШ №12  с УИОП","СОШ №46  с УИОП","СОШ №1","СОШ №3","СОШ №4","СОШ №5","СОШ №6","СОШ №7","СОШ №8 им. Сибирцева АН","СОШ №13","СОШ №15","СОШ №18","СОШ №19"]
["7. Количество выявленных фактов финансирования расходов по денежным обязательствам, не обеспеченным источниками финансирования (либо число выявленных фактов, объем расходов по денежным обязательствам, не обеспеченным источниками финансирования)","устан.",null,null,1,1,1,1,1,1,1,1,1,1,1,1,1,1,1,1,1,1,1,1,1,1,null,null,null,null,null,null,null,null,null,null,null,null,null,null,null,null,null,null,null,null,null,22]
[null,"исполн.",null,null,1,1,1,1,1,1,1,1,1,1,1,1,1,1,1,1,1,1,1,1,1,1,null,null,null,null,null,null,null,null,null,null,null,null,null,null,null,null,null,null,null,null,null,22]
["Муниципальная услуга «Дошкольное образование в образовательных учреждениях, реализующих программу дошкольного образования»",null,null,null,null,null,null,null,null,null,null,null,null,null,null,null,null,null,null,null,null,null,null,null,null,null,null,null,null,null,null,null,null,null,null,null,null,null,null,null,null,null,null,null,null,null,null,0]
["Показатели, характеризующие качество оказания муниципальной услуги:",null,null,null,null,null,null,null,null,null,null,null,null,null,null,null,null,null,null,null,null,null,null,null,null,null,null,null,null,null,null,null,null,null,null,null,null,null,null,null,null,null,null,null,null,null,null,0]
["Количество подтвержденных жалоб потребителей на нарушение стандарта качества оказания муниципальной услуги","устан.",null,null,1,null,null,null,null,null,null,null,null,1,null,null,null,null,null,null,null,null,null,null,null,null,null,null,null,null,null,null,null,null,null,null,null,null,null,null,null,null,null,null,null,null,null,2]
[null,"исполн.",null,null,1,null,null,null,null,null,null,null,null,1,null,null,null,null,null,null,null,null,null,null,null,null,null,null,null,null,null,null,null,null,null,null,null,null,null,null,null,null,null,null,null,null,null,2]
["Соблюдение требований к укомплектованности образовательного учреждения кадрами",null,null,null,null,null,null,null,null,null,null,null,null,null,null,null,null,null,null,null,null,null,null,null,null,null,null,null,null,null,null,null,null,null,null,null,null,null,null,null,null,null,null,null,null,null,null,0]
["Общая укомплектованность работниками (с учетом внутреннего и внешнего совместительства)","устан.",null,null,1,null,null,null,null,null,null,null,null,1,null,null,null,null,null,null,null,null,null,null,null,null,null,null,null,null,null,null,null,null,null,null,null,null,null,null,null,null,null,null,null,null,null,2]
[null,"исполн.",null,null,1,null,null,null,null,null,null,null,null,1,null,null,null,null,null,null,null,null,null,null,null,null,null,null,null,null,null,null,null,null,null,null,null,null,null,null,null,null,null,null,null,null,null,2]
["Укомплектованность штатными педагогическими работниками (без учета внешнего совместительства), не менее","устан.",null,null,1,null,null,null,null,null,null,null,null,1,null,null,null,null,null,null,null,null,null,null,null,null,null,null,null,null,null,null,null,null,null,null,null,null,null,null,null,null,null,null,null,null,null,2]
[null,"исполн.",null,null,1,null,null,null,null,null,null,null,null,1,null,null,null,null,null,null,null,null,null,null,null,null,null,null,null,null,null,null,null,null,null,null,null,null,null,null,null,null,null,null,null,null,null,2]
["Соблюдение требований к уровню квалификации работников:",null,null,null,null,null,null,null,null,null,null,null,null,null,null,null,null,null,null,null,null,null,null,null,null,null,null,null,null,null,null,null,null,null,null,null,null,null,null,null,null,null,null,null,null,null,null,0]
["Доля педагогических работников,  имеющих первую и высшую квалификационные категории, в общей численности педагогических работников (с учетом внутреннего и внешнего совместительства), не менее","устан.",null,null,1,null,null,null,null,null,null,null,null,1,null,null,null,null,null,null,null,null,null,null,null,null,null,null,null,null,null,null,null,null,null,null,null,null,null,null,null,null,null,null,null,null,null,2]
[null,"исполн.",null,null,1,null,null,null,null,null,null,null,null,1,null,null,null,null,null,null,null,null,null,null,null,null,null,null,null,null,null,null,null,null,null,null,null,null,null,null,null,null,null,null,null,null,null,2]
["Доля работников, соответствующих квалификационным требованиям по занимаемым должностям","устан.",null,null,1,null,null,null,null,null,null,null,null,1,null,null,null,null,null,null,null,null,null,null,null,null,null,null,null,null,null,null,null,null,null,null,null,null,null,null,null,null,null,null,null,null,null,2]
[null,"исполн.",null,null,1,null,null,null,null,null,null,null,null,1,null,null,null,null,null,null,null,null,null,null,null,null,null,null,null,null,null,null,null,null,null,null,null,null,null,null,null,null,null,null,null,null,null,2]
["Соответствие структуры основной общеобразовательной программы дошкольного образовательного учреждения Федеральным государственным требованиям","устан.",null,null,1,null,null,null,null,null,null,null,null,1,null,null,null,null,null,null,null,null,null,null,null,null,null,null,null,null,null,null,null,null,null,null,null,null,null,null,null,null,null,null,null,null,null,2]
[null,"исполн.",null,null,1,null,null,null,null,null,null,null,null,1,null,null,null,null,null,null,null,null,null,null,null,null,null,null,null,null,null,null,null,null,null,null,null,null,null,null,null,null,null,null,null,null,null,2]
["Полнота выполнения основной общеобразовательной программы (по данным учреждения)","устан.",null,null,1,null,null,null,null,null,null,null,null,1,null,null,null,null,null,null,null,null,null,null,null,null,null,null,null,null,null,null,null,null,null,null,null,null,null,null,null,null,null,null,null,null,null,2]
[null,"исполн.",null,null,1,null,null,null,null,null,null,null,null,1,null,null,null,null,null,null,null,null,null,null,null,null,null,null,null,null,null,null,null,null,null,null,null,null,null,null,null,null,null,null,null,null,null,2]
["Выполнение плана по дето-дням","устан.",null,null,1,null,null,null,null,null,null,null,null,1,null,null,null,null,null,null,null,null,null,null,null,null,null,null,null,null,null,null,null,null,null,null,null,null,null,null,null,null,null,null,null,null,null,2]
[null,"исполн.",null,null,0,null,null,null,null,null,null,null,null,0,null,null,null,null,null,null,null,null,null,null,null,null,null,null,null,null,null,null,null,null,null,null,null,null,null,null,null,null,null,null,null,null,null,0]
["    Наименование показателя    ","Плановое значение показателя установлено / исполнено","n-2 год*","n-1 год*","Гимназия \"ЛС\"","Гимназия №2","Гимназия им. ФКС","Гимназия №4","Лицей №1","Лицей №2","Лицей №3","Лицей им.ХВИ","СОШ №10  с УИОП","СОШ №12  с УИОП","СОШ №46  с УИОП","СОШ №1","СОШ №3","СОШ №4","СОШ №5","СОШ №6","СОШ №7","СОШ №8 им. Сибирцева АН","СОШ №13","СОШ №15","СОШ №18","СОШ №19"]
["Доля выпускников с оптимальным и достаточным уровнем готовности к школе, в общей численности выпускников","устан.",null,null,1,null,null,null,null,null,null,null,null,1,null,null,null,null,null,null,null,null,null,null,null,null,null,null,null,null,null,null,null,null,null,null,null,null,null,null,null,null,null,null,null,null,null,2]
[null,"исполн.",null,null,1,null,null,null,null,null,null,null,null,1,null,null,null,null,null,null,null,null,null,null,null,null,null,null,null,null,null,null,null,null,null,null,null,null,null,null,null,null,null,null,null,null,null,2]
["Показатели, характеризующие объем муниципальной услуги",null,null,null,null,null,null,null,null,null,null,null,null,null,null,null,null,null,null,null,null,null,null,null,null,null,null,null,null,null,null,null,null,null,null,null,null,null,null,null,null,null,null,null,null,null,null,0]
["Численность воспитанников, получающих муниципальную услугу в образовательных учреждениях, реализующих программу дошкольного образования","устан.",null,null,1,null,null,null,null,null,null,null,null,1,null,null,null,null,null,null,null,null,null,null,null,null,null,null,null,null,null,null,null,null,null,null,null,null,null,null,null,null,null,null,null,null,null,2]
[null,"исполн.",null,null,1,null,null,null,null,null,null,null,null,1,null,null,null,null,null,null,null,null,null,null,null,null,null,null,null,null,null,null,null,null,null,null,null,null,null,null,null,null,null,null,null,null,null,2]
["в том числе по присоединенному учреждению","устан.",null,null,null,null,null,null,null,null,null,null,null,1,null,null,null,null,null,null,null,null,null,null,null,null,null,null,null,null,null,null,null,null,null,null,null,null,null,null,null,null,null,null,null,null,null,{"$f":"SUM(E53:AU53)","v":1}]
[null,"исполн.",null,null,null,null,null,null,null,null,null,null,null,1,null,null,null,null,null,null,null,null,null,null,null,null,null,null,null,null,null,null,null,null,null,null,null,null,null,null,null,null,null,null,null,null,null,{"$f":"SUM(E54:AU54)","v":1}]
["Муниципальная услуга «Общее и дополнительное образование в общеобразовательных учреждениях»",null,null,null,null,null,null,null,null,null,null,null,null,null,null,null,null,null,null,null,null,null,null,null,null,null,null,null,null,null,null,null,null,null,null,null,null,null,null,null,null,null,null,null,null,null,null,{"$f":"SUM(E55:AU55)","v":0}]
["Показатели, характеризующие качество оказания муниципальной услуги:",null,null,null,null,null,null,null,null,null,null,null,null,null,null,null,null,null,null,null,null,null,null,null,null,null,null,null,null,null,null,null,null,null,null,null,null,null,null,null,null,null,null,null,null,null,null,0]
["Количество подтвержденных жалоб потребителей на нарушение стандарта качества оказания муниципальной услуги","устан.",null,null,1,1,1,1,1,1,1,1,1,1,1,1,1,1,1,1,1,1,1,1,1,1,null,null,null,null,null,null,null,null,null,null,null,null,null,null,null,null,null,null,null,null,null,22]
[null,"исполн.",null,null,1,1,1,1,1,1,1,1,1,1,1,1,1,1,1,1,1,1,1,1,1,1,null,null,null,null,null,null,null,null,null,null,null,null,null,null,null,null,null,null,null,null,null,22]
["Укомплектованность педагогическими работниками","устан.",null,null,1,1,1,1,1,1,1,1,1,1,1,1,1,1,1,1,1,1,1,1,1,1,null,null,null,null,null,null,null,null,null,null,null,null,null,null,null,null,null,null,null,null,null,22]
[null,"исполн.",null,null,1,1,1,1,1,1,1,1,1,1,1,1,1,1,1,1,1,1,1,1,1,1,null,null,null,null,null,null,null,null,null,null,null,null,null,null,null,null,null,null,null,null,null,22]
["Укомплектованность штатными педагогическими работниками (без учета внешнего совместительства), не менее","устан.",null,null,1,1,1,1,1,1,1,1,1,1,1,1,1,1,1,1,1,1,1,1,1,1,null,null,null,null,null,null,null,null,null,null,null,null,null,null,null,null,null,null,null,null,null,22]
[null,"исполн.",null,null,1,1,"1 1  ",1,1,1,1,1,1,1,"1 1  ",1,1,1,1,1,1,1,1,1,1,1,null,null,null,null,null,null,null,null,null,null,null,null,null,null,null,null,null,null,null,null,null,20]
["Доля педагогических работников, имеющих первую и высшую квалификационные категории, в общей численности педагогических работников, не менее","устан.",null,null,1,1,1,1,1,1,1,1,1,1,1,1,1,1,1,1,1,1,1,1,1,1,null,null,null,null,null,null,null,null,null,null,null,null,null,null,null,null,null,null,null,null,null,22]
[null,"исполн.",null,null,1,1,1,1,1,1,1,1,1,1,1,1,1,1,1,1,1,1,1,1,1,1,null,null,null,null,null,null,null,null,null,null,null,null,null,null,null,null,null,null,null,null,null,22]
["Полнота выполнения основных общеобразовательных программ (по данным учреждения)","устан.",null,null,1,1,1,1,1,1,1,1,1,1,1,1,1,1,1,1,1,1,1,1,1,1,null,null,null,null,null,null,null,null,null,null,null,null,null,null,null,null,null,null,null,null,null,22]
[null,"исполн.",null,null,1,1,1,1,1,1,1,1,1,1,1,1,1,1,1,1,1,1,1,1,1,1,null,null,null,null,null,null,null,null,null,null,null,null,null,null,null,null,null,null,null,null,null,22]
["Доля обучающихся, имеющих положительные отметки по итогам учебного года, в общей численности обучающихся","устан.",null,null,1,1,1,1,1,1,1,1,1,1,1,1,1,1,1,1,1,1,1,1,1,1,null,null,null,null,null,null,null,null,null,null,null,null,null,null,null,null,null,null,null,null,null,22]
[null,"исполн.",null,null,1,1,1,1,1,1,1,1,1,1,1,1,1,1,1,1,1,1,1,1,1,1,null,null,null,null,null,null,null,null,null,null,null,null,null,null,null,null,null,null,null,null,null,22]
["Доля обучающихся 11(12) - х классов, успешно сдавших ЕГЭ, в общей численности обучающихся 11(12) классов, сдававших ЕГЭ","устан.",null,null,1,1,1,1,1,1,1,1,1,1,1,1,1,1,1,1,1,1,1,1,1,1,null,null,null,null,null,null,null,null,null,null,null,null,null,null,null,null,null,null,null,null,null,22]
[null,"исполн.",null,null,1,1,1,1,1,1,1,1,1,1,1,1,1,1,1,1,1,1,1,1,1,1,null,null,null,null,null,null,null,null,null,null,null,null,null,null,null,null,null,null,null,null,null,22]
["Численность обучающихся на 1 компьютер, используемый в образовательном процессе","устан.",null,null,1,1,1,1,1,1,1,1,1,1,1,1,1,1,1,1,1,1,1,1,1,1,null,null,null,null,null,null,null,null,null,null,null,null,null,null,null,null,null,null,null,null,null,22]
[null,"исполн.",null,null,1,1,1,1,1,1,1,1,1,1,1,1,1,1,1,1,1,1,1,1,1,1,null,null,null,null,null,null,null,null,null,null,null,null,null,null,null,null,null,null,null,null,null,22]
["    Наименование показателя    ","Плановое значение показателя установлено / исполнено","n-2 год*","n-1 год*","Гимназия \"ЛС\"","Гимназия №2","Гимназия им. ФКС","Гимназия №4","Лицей №1","Лицей №2","Лицей №3","Лицей им.ХВИ","СОШ №10  с УИОП","СОШ №12  с УИОП","СОШ №46  с УИОП","СОШ №1","СОШ №3","СОШ №4","СОШ №5","СОШ №6","СОШ №7","СОШ №8 им. Сибирцева АН","СОШ №13","СОШ №15","СОШ №18","СОШ №19"]
["Реализация программы духовно-нравственного воспитания обучающихся","устан.",null,null,1,1,1,1,1,1,1,1,1,1,1,1,1,1,1,1,1,1,1,1,1,1,null,null,null,null,null,null,null,null,null,null,null,null,null,null,null,null,null,null,null,null,null,22]
[null,"исполн.",null,null,1,1,1,1,1,1,1,1,1,1,1,1,1,1,1,1,1,1,1,1,1,1,null,null,null,null,null,null,null,null,null,null,null,null,null,null,null,null,null,null,null,null,null,22]
["Показатели, характеризующие объем муниципальной услуги",null,null,null,null,null,null,null,null,null,null,null,null,null,null,null,null,null,null,null,null,null,null,null,null,null,null,null,null,null,null,null,null,null,null,null,null,null,null,null,null,null,null,null,null,null,null,0]
["Численность обучающихся, осваивающих программу общего образования","устан.",null,null,1,1,1,1,1,1,1,1,1,1,1,1,1,1,1,1,1,1,1,1,1,1,null,null,null,null,null,null,null,null,null,null,null,null,null,null,null,null,null,null,null,null,null,22]
[null,"исполн.",null,null,1,1,1,1,1,1,1,1,1,1,1,1,1,1,1,1,1,1,1,1,1,1,null,null,null,null,null,null,null,null,null,null,null,null,null,null,null,null,null,null,null,null,null,22]
["а также по присоединенному учреждению","устан.",null,null,null,null,null,null,null,null,null,null,null,1,null,null,null,null,null,null,null,null,null,null,null,null,null,null,null,null,null,null,null,null,null,null,null,null,null,null,null,null,null,null,null,null,null,1]
[null,"исполн.",null,null,null,null,null,null,null,null,null,null,null,1,null,null,null,null,null,null,null,null,null,null,null,null,null,null,null,null,null,null,null,null,null,null,null,null,null,null,null,null,null,null,null,null,null,1]
["Численность обучающихся, осваивающих программу дополнительного образования на базе данного образовательного учреждения (кроме занимающихся в центре дополнительного образования детей)","устан.",null,null,1,1,1,1,1,1,1,null,1,1,1,1,1,1,1,1,1,1,1,1,1,1,null,null,null,null,null,null,null,null,null,null,null,null,null,null,null,null,null,null,null,null,null,21]
[null,"исполн.",null,null,1,1,1,1,1,1,1,null,1,1,1,1,1,1,1,1,1,1,1,1,1,1,null,null,null,null,null,null,null,null,null,null,null,null,null,null,null,null,null,null,null,null,null,21]
["а также по присоединенному учреждению","устан.",null,null,null,null,null,null,null,null,null,null,null,1,null,null,null,null,null,null,null,null,null,null,null,null,null,null,null,null,null,null,null,null,null,null,null,null,null,null,null,null,null,null,null,null,null,1]
[null,"исполн.",null,null,null,null,null,null,null,null,null,null,null,1,null,null,null,null,null,null,null,null,null,null,null,null,null,null,null,null,null,null,null,null,null,null,null,null,null,null,null,null,null,null,null,null,null,1]
["Численность обучающихся, осваивающих программу дополнительного образования в центре дополнительного образования детей на базе данного образовательного учреждения","устан.",null,null,1,null,null,1,null,null,1,1,1,null,null,null,null,null,null,null,null,null,null,null,1,null,null,null,null,null,null,null,null,null,null,null,null,null,null,null,null,null,null,null,null,null,null,6]
[null,"исполн.",null,null,1,null,null,1,null,null,1,1,1,null,null,null,null,null,null,null,null,null,null,null,1,null,null,null,null,null,null,null,null,null,null,null,null,null,null,null,null,null,null,null,null,null,null,6]
["Муниципальная услуга «Организация и обеспечение отдыха и оздоровления детей»",null,null,null,null,null,null,null,null,null,null,null,null,null,null,null,null,null,null,null,null,null,null,null,null,null,null,null,null,null,null,null,null,null,null,null,null,null,null,null,null,null,null,null,null,null,null,0]
["Показатели, характеризующие качество оказания муниципальной услуги:",null,null,null,null,null,null,null,null,null,null,null,null,null,null,null,null,null,null,null,null,null,null,null,null,null,null,null,null,null,null,null,null,null,null,null,null,null,null,null,null,null,null,null,null,null,null,0]
["Количество подтвержденных жалоб потребителей на нарушение стандарта качества оказания муниципальной услуги","устан.",null,null,1,1,1,1,1,1,1,1,1,1,1,1,1,1,1,1,1,1,1,1,1,1,null,null,null,null,null,null,null,null,null,null,null,null,null,null,null,null,null,null,null,null,null,22]
[null,"исполн.",null,null,1,1,1,1,1,1,1,1,1,1,1,1,1,1,1,1,1,1,1,1,1,1,null,null,null,null,null,null,null,null,null,null,null,null,null,null,null,null,null,null,null,null,null,22]
["Показатели, характеризующие объем муниципальной услуги",null,null,null,null,null,null,null,null,null,null,null,null,null,null,null,null,null,null,null,null,null,null,null,null,null,null,null,null,null,null,null,null,null,null,null,null,null,null,null,null,null,null,null,null,null,null,0]
["Численность детей, получающих муниципальную услугу в оздоровительных лагерях с дневным пребыванием детей на базе образовательного учреждения, всего","устан.",null,null,1,1,1,1,1,1,1,1,1,1,1,1,1,1,1,1,1,1,1,1,1,1,null,null,null,null,null,null,null,null,null,null,null,null,null,null,null,null,null,null,null,null,null,22]
[null,"исполн.",null,null,1,1,1,1,1,1,1,1,1,1,1,1,1,1,1,1,1,1,1,1,1,1,null,null,null,null,null,null,null,null,null,null,null,null,null,null,null,null,null,null,null,null,null,22]
["в том числе",null,null,null,null,null,null,null,null,null,null,null,null,null,null,null,null,null,null,null,null,null,null,null,null,null,null,null,null,null,null,null,null,null,null,null,null,null,null,null,null,null,null,null,null,null,null,0]
["весна","устан.",null,null,null,null,1,null,1,1,null,1,1,1,1,1,1,null,1,1,1,null,1,1,1,1,null,null,null,null,null,null,null,null,null,null,null,null,null,null,null,null,null,null,null,null,null,16]
[null,"исполн.",null,null,null,null,1,null,1,1,null,1,1,1,1,1,1,null,1,1,1,null,1,1,1,1,null,null,null,null,null,null,null,null,null,null,null,null,null,null,null,null,null,null,null,null,null,16]
["лето","устан.",null,null,1,null,1,1,1,null,1,null,1,1,null,1,1,null,1,1,1,1,1,1,1,1,null,null,null,null,null,null,null,null,null,null,null,null,null,null,null,null,null,null,null,null,null,17]
[null,"исполн.",null,null,1,null,1,1,1,null,1,null,1,1,null,1,1,null,1,1,1,1,1,1,1,1,null,null,null,null,null,null,null,null,null,null,null,null,null,null,null,null,null,null,null,null,null,17]
["лето (присоединенное учреждение)","устан.",null,null,null,null,null,null,null,null,null,null,null,1,null,null,null,null,null,null,null,null,null,null,null,null,null,null,null,null,null,null,null,null,null,null,null,null,null,null,null,null,null,null,null,null,null,1]
[null,"исполн.",null,null,null,null,null,null,null,null,null,null,null,1,null,null,null,null,null,null,null,null,null,null,null,null,null,null,null,null,null,null,null,null,null,null,null,null,null,null,null,null,null,null,null,null,null,1]
["    Наименование показателя    ","Плановое значение показателя установлено / исполнено","n-2 год*","n-1 год*","Гимназия \"ЛС\"","Гимназия №2","Гимназия им. ФКС","Гимназия №4","Лицей №1","Лицей №2","Лицей №3","Лицей им.ХВИ","СОШ №10  с УИОП","СОШ №12  с УИОП","СОШ №46  с УИОП","СОШ №1","СОШ №3","СОШ №4","СОШ №5","СОШ №6","СОШ №7","СОШ №8 им. Сибирцева АН","СОШ №13","СОШ №15","СОШ №18","СОШ №19"]
["осень","устан.",null,null,1,1,1,1,null,1,1,null,1,1,1,1,1,1,1,1,1,1,1,1,1,null,null,null,null,null,null,null,null,null,null,null,null,null,null,null,null,null,null,null,null,null,null,19]
[null,"исполн.",null,null,1,1,1,1,null,1,1,null,1,1,1,1,1,1,1,1,1,1,1,1,1,null,null,null,null,null,null,null,null,null,null,null,null,null,null,null,null,null,null,null,null,null,null,19]
["Численность детей, получающих муниципальную  услугу в рамках выездных образовательных и тематических программ (проектов)","устан.",null,null,1,null,null,null,null,null,null,null,null,null,null,null,null,null,null,null,null,null,null,null,null,null,null,null,null,null,null,null,null,null,null,null,null,null,null,null,null,null,null,null,null,null,null,1]
[null,"исполн.",null,null,"1 2  ",null,null,null,null,null,null,null,null,null,null,null,null,null,null,null,null,null,null,null,null,null,null,null,null,null,null,null,null,null,null,null,null,null,null,null,null,null,null,null,null,null,null,0]
["Релультаты оценки выполнения муниципального задания:"]
["общее число показателей, по которым установлено муниципальное задание",null,null,null,{"$f":"E8+E10+E12+E14+E16+E18+E20+E22+E25+E29+E32+E34+E37+E39+E41+E43+E45+E48+E51+E57+E59+E61+E63+E65+E67+E69+E71+E74+E77+E79+E81+E83+E85+E89+E92+E95+E97+E99+E102+E104","v":35},22,24,24,23,23,24,22,25,{"$f":"N8+N10+N12+N14+N16+N18+N20+N22+N25+N29+N32+N34+N37+N39+N41+N43+N45+N48+N51+N53+N57+N59+N61+N63+N65+N67+N69+N71+N74+N77+N79+N81+N83+N85+N89+N92+N95+N97+N99+N102+N104","v":38},{"$f":"O8+O10+O12+O14+O16+O18+O20+O22+O25+O29+O32+O34+O37+O39+O41+O43+O45+O48+O51+O57+O59+O61+O63+O65+O67+O69+O71+O74+O77+O79+O81+O83+O85+O89+O92+O95+O97+O99+O102+O104","v":23},24,24,22,24,24,24,23,24,24,25,23,null,null,null,null,null,null,null,null,null,null,null,null,null,null,null,null,null,null,null,null,null,{"$f":"SUM(E107:AU107)","v":544}]
["число показателей, по которым исполнено муниципальное задание (в том числе признано исполненым с учетом объективных факторов)",null,null,null,{"$f":"E9+E11+E13+E15+E17+E19+E21+E23+E26+E30+E33+E35+E38+E40+E42+E44+E46+E49+E52+E58+E60+E62+E64+E66+E68+E70+E72+E75+E78+E80+E82+E84+E86+E90+E93+E96+E98+E100+E103+1","v":34},{"$f":"F9+F11+F13+F15+F17+F19+F21+F23+F26+F30+F33+F35+F38+F40+F42+F44+F46+F49+F52+F58+F60+F62+F64+F66+F68+F70+F72+F75+F78+F80+F82+F84+F86+F90+F93+F96+F98+F100+F103+F105","v":22},{"$f":"G9+G11+G13+G15+G17+G19+G21+G23+G26+G30+G33+G35+G38+G40+G42+G44+G46+G49+G52+G58+G60+1+G64+G66+G68+G70+G72+G75+G78+G80+G82+G84+G86+G90+G93+G96+G98+G100+G103+G105","v":24},{"$f":"H9+H11+H13+H15+H17+H19+H21+H23+H26+H30+H33+H35+H38+H40+H42+H44+H46+H49+H52+H58+H60+H62+H64+H66+H68+H70+H72+H75+H78+H80+H82+H84+H86+H90+H93+H96+H98+H100+H103+H105","v":24},23,23,23,22,24,{"$f":"N9+N11+N13+N15+N17+N19+N21+N23+N26+N30+N33+N35+N38+N40+N42+N44+N46+N49+N52+N54+N58+N60+N62+N64+N66+N68+N70+N72+N75+N78+N80+N82+N84+N86+N90+N93+N96+N98+N100+N103+N105","v":37},{"$f":"O9+O11+O13+O15+O17+O19+O21+O23+O26+O30+O33+O35+O38+O40+O42+O44+O46+O49+O52+O58+O60+1+O64+O66+O68+O70+O72+O75+O78+O80+O82+O84+O86+O90+O93+O96+O98+O100+O103+O105","v":23},{"$f":"P9+P11+P13+P15+P17+P19+P21+P23+P26+P30+P33+P35+P38+P40+P42+P44+P46+P49+P52+P58+P60+P62+P64+P66+P68+P70+P72+P75+P78+P80+P82+P84+P86+P90+P93+P96+P98+P100+P103+P105","v":23},23,22,23,23,24,22,23,24,25,23,null,null,null,null,null,null,null,null,null,null,null,null,null,null,null,null,null,null,null,null,null,{"$f":"SUM(E108:AU108)","v":534}]
["доля показателей, по которым исполнено муниципальное задание, в общем числе установленных показателей",null,null,null,{"$f":"E108/E107*100","v":97},100,100,100,100,100,96,100,96,97,100,{"$f":"P108/P107*100","v":96},96,100,96,96,100,96,96,100,100,100,null,null,null,null,null,null,null,null,null,null,null,null,null,null,null,null,null,null,null,null,null,{"$f":"AV108/AV107*100","v":98}]
["ПРОЦЕНТ ИСПОЛНЕНИЯ МУНИЦИПАЛЬНОГО ЗАДАНИЯ:\n\"исполнено\" - 100% \"не исполнено\" - 0%",null,null,null,100,100,100,100,100,100,100,100,100,100,100,100,100,100,100,100,100,100,100,100,100,100,null,null,null,null,null,null,null,null,null,null,null,null,null,null,null,null,null,null,null,null,null,{"$f":"SUM(E110:AU110)","v":2200}]
[null,null,null,null,null,null,null,null,null,null,null,null,null,null,null,null,null,null,null,null,null,null,null,null,null,"продолжение таблицы"]
["    Наименование показателя    ","Плановое значение показателя установлено / исполнено","n-2 год*","n-1 год*","СОШ №20","СОШ №22","СОШ №24","СОШ №25","СОШ №26","СОШ №27","СОШ №29","СОШ №32","СОШ №38","СОШ №44","СОШ №45","О(С)ОШ №1","Прогимназия ","НШ-ДС №2","НШ-ДС №37","НШ-ДС  №42","НШ-ДС  №43","НОШ №30","НОШ №35","НОШ №40","МУК \"ЦИР\""]
["Общие требования к деятельности муниципального учреждения по оказанию муниципальных услуг (выполнению работ)"]
["Соблюдение норм законодательства Российской Федерации, Ханты-Мансийского автономного округа - Югры, муниципальных правовых актов города Сургута в части, касающейся деятельности муниципального учреждения по оказанию муниципальных услуг"]
["1. Количество предъявленных исковых требований         ","устан.",null,null,1,1,1,1,1,1,1,1,1,1,1,1,1,1,1,1,1,1,1,1,1]
[null,"исполн.",null,null,1,1,1,1,1,1,1,1,1,1,1,1,1,1,1,1,1,1,1,1,1]
[]
[]
["2. Количество пунктов предписаний со стороны контрольных и надзорных органов исполнительной власти за нарушения организационного характера     ","устан.",null,null,1,1,1,1,1,1,1,1,1,1,1,1,1,1,1,1,1,1,1,1,1]
[null,"исполн.",null,null,1,1,1,1,1,1,1,1,1,1,1,1,1,1,1,1,1,1,1,1,1]
["3. Количество и объем штрафных санкций со стороны контрольных и надзорных органов исполнительной власти,                          ","устан.",null,null,1,1,1,1,1,1,1,1,1,1,1,1,1,1,1,1,1,1,1,1,1]
[null,"исполн.",null,null,1,1,1,1,1,1,1,1,1,1,1,1,1,0,1,1,1,1,1,1,1]
["    Наименование показателя    ","Плановое значение показателя установлено / исполнено","n-2 год*","n-1 год*","СОШ №20","СОШ №22","СОШ №24","СОШ №25","СОШ №26","СОШ №27","СОШ №29","СОШ №32","СОШ №38","СОШ №44","СОШ №45","О(С)ОШ №1","Прогимназия ","НШ-ДС №2","НШ-ДС №37","НШ-ДС  №42","НШ-ДС  №43","НОШ №30","НОШ №35","НОШ №40","МУК \"ЦИР\""]
["из них за нарушения организационного характера     ","устан.",null,null,1,1,1,1,1,1,1,1,1,1,1,1,1,1,1,1,1,1,1,1,1]
[null,"исполн.",null,null,1,1,1,1,1,1,1,1,1,1,1,1,1,1,1,1,1,1,1,1,1]
["4. Количество выявленных нарушений в актах проверок деятельности на предмет соответствия его деятельности нормам законодательства ","устан.",null,null,1,1,1,1,1,1,1,1,1,1,1,1,1,1,1,1,1,1,1,1,1]
[null,"исполн.",null,null,1,0,1,1,0,1,0,1,1,1,1,1,1,0,1,1,1,0,1,1,1]
["5. Количество выявленных фактов принятия денежных обязательств, не обеспеченных источниками финансирования               ","устан.",null,null,1,1,1,1,1,1,1,1,1,1,1,1,1,1,1,1,1,1,1,1,1]
[null,"исполн.",null,null,1,1,1,1,1,1,1,1,1,1,1,1,1,1,1,1,1,1,1,1,1]
["6. Количество требований со стороны третьих лиц по выполнению принятых денежных обязательств, не обеспеченных источниками финансирования (либо число требований со стороны третьих лиц, размер предъявленных требований в части, не обеспеченной источниками финансирования)","устан.",null,null,1,1,1,1,1,1,1,1,1,1,1,1,1,1,1,1,1,1,1,1,1]
[null,"исполн.",null,null,1,1,1,1,1,1,1,1,1,1,1,1,1,1,1,1,1,1,1,1,1]
["7. Количество выявленных фактов финансирования расходов по денежным обязательствам, не обеспеченным источниками финансирования (либо число выявленных фактов, объем расходов по денежным обязательствам, не обеспеченным источниками финансирования)","устан.",null,null,1,1,1,1,1,1,1,1,1,1,1,1,1,1,1,1,1,1,1,1,1]
[null,"исполн.",null,null,1,1,1,1,1,1,1,1,1,1,1,1,1,1,1,1,1,1,1,1,1]
["Муниципальная услуга «Дошкольное образование в образовательных учреждениях, реализующих программу дошкольного образования»"]
["Показатели, характеризующие качество оказания муниципальной услуги:"]
["Количество подтвержденных жалоб потребителей на нарушение стандарта качества оказания муниципальной услуги","устан.",null,null,null,null,null,null,1,null,null,null,null,null,null,null,1,1,1,1,1]
[null,"исполн.",null,null,null,null,null,null,1,null,null,null,null,null,null,null,1,1,1,1,1]
["Соблюдение требований к укомплектованности образовательного учреждения кадрами"]
["Общая укомплектованность работниками (с учетом внутреннего и внешнего совместительства)","устан.",null,null,null,null,null,null,1,null,null,null,null,null,null,null,1,1,1,1,1]
[null,"исполн.",null,null,null,null,null,null,1,null,null,null,null,null,null,null,1,1,1,1,1]
["Укомплектованность штатными педагогическими работниками (без учета внешнего совместительства), не менее","устан.",null,null,null,null,null,null,1,null,null,null,null,null,null,null,1,1,1,1,1]
[null,"исполн.",null,null,null,null,null,null,1,null,null,null,null,null,null,null,1,1,1,1,1]
["Соблюдение требований к уровню квалификации работников:"]
["    Наименование показателя    ","Плановое значение показателя установлено / исполнено","n-2 год*","n-1 год*","СОШ №20","СОШ №22","СОШ №24","СОШ №25","СОШ №26","СОШ №27","СОШ №29","СОШ №32","СОШ №38","СОШ №44","СОШ №45","О(С)ОШ №1","Прогимназия ","НШ-ДС №2","НШ-ДС №37","НШ-ДС  №42","НШ-ДС  №43","НОШ №30","НОШ №35","НОШ №40","МУК \"ЦИР\""]
["Доля педагогических работников,  имеющих первую и высшую квалификационные категории, в общей численности педагогических работников (с учетом внутреннего и внешнего совместительства), не менее","устан.",null,null,null,null,null,null,1,null,null,null,null,null,null,null,1,1,1,1,1]
[null,"исполн.",null,null,null,null,null,null,1,null,null,null,null,null,null,null,1,1,1,1,1]
["Доля работников, соответствующих квалификационным требованиям по занимаемым должностям","устан.",null,null,null,null,null,null,1,null,null,null,null,null,null,null,1,1,1,1,1]
[null,"исполн.",null,null,null,null,null,null,1,null,null,null,null,null,null,null,1,1,1,1,1]
["Соответствие структуры основной общеобразовательной программы дошкольного образовательного учреждения Федеральным государственным требованиям","устан.",null,null,null,null,null,null,1,null,null,null,null,null,null,null,1,1,1,1,1]
[null,"исполн.",null,null,null,null,null,null,1,null,null,null,null,null,null,null,1,1,1,1,1]
["Полнота выполнения основной общеобразовательной программы (по данным учреждения)","устан.",null,null,null,null,null,null,1,null,null,null,null,null,null,null,1,1,1,1,1]
[null,"исполн.",null,null,null,null,null,null,1,null,null,null,null,null,null,null,1,1,1,1,1]
["Выполнение плана по дето-дням","устан.",null,null,null,null,null,null,1,null,null,null,null,null,null,null,1,1,1,1,1]
[null,"исполн.",null,null,null,null,null,null,1,null,null,null,null,null,null,null,0,0,0,1,0]
["Доля выпускников с оптимальным и достаточным уровнем готовности к школе, в общей численности выпускников","устан.",null,null,null,null,null,null,1,null,null,null,null,null,null,null,1,1,1,1,1]
[null,"исполн.",null,null,null,null,null,null,1,null,null,null,null,null,null,null,1,1,1,1,1]
["Показатели, характеризующие объем муниципальной услуги"]
["Численность воспитанников, получающих муниципальную услугу в образовательных учреждениях, реализующих программу дошкольного образования","устан.",null,null,null,null,null,null,1,null,null,null,null,null,null,null,1,1,1,1,1]
[null,"исполн.",null,null,null,null,null,null,1,null,null,null,null,null,null,null,1,1,1,1,1]
["в том числе по присоединенному учреждению","устан.",null,null,null,null,null,null,1]
[null,"исполн.",null,null,null,null,null,null,1]
["Муниципальная услуга «Общее и дополнительное образование в общеобразовательных учреждениях»"]
["Показатели, характеризующие качество оказания муниципальной услуги:"]
["Количество подтвержденных жалоб потребителей на нарушение стандарта качества оказания муниципальной услуги","устан.",null,null,1,1,1,1,1,1,1,1,1,1,1,1,1,1,1,1,1,1,1,1,1]
[null,"исполн.",null,null,1,1,1,1,1,1,1,1,1,1,1,1,1,1,1,1,1,1,1,1,1]
["Укомплектованность педагогическими работниками","устан.",null,null,1,1,1,1,1,1,1,1,1,1,1,1,1,1,1,1,1,1,1,1,1]
[null,"исполн.",null,null,1,1,1,1,1,1,1,1,1,1,1,1,1,1,1,1,1,1,1,1,1]
["Укомплектованность штатными педагогическими работниками (без учета внешнего совместительства), не менее","устан.",null,null,1,1,1,1,1,1,1,1,1,1,1,1,1,1,1,1,1,1,1,1,1]
[null,"исполн.",null,null,1,1,1,1,1,1,1,1,1,1,1,1,1,1,1,1,1,1,1,1,1]
["    Наименование показателя    ","Плановое значение показателя установлено / исполнено","n-2 год*","n-1 год*","СОШ №20","СОШ №22","СОШ №24","СОШ №25","СОШ №26","СОШ №27","СОШ №29","СОШ №32","СОШ №38","СОШ №44","СОШ №45","О(С)ОШ №1","Прогимназия ","НШ-ДС №2","НШ-ДС №37","НШ-ДС  №42","НШ-ДС  №43","НОШ №30","НОШ №35","НОШ №40","МУК \"ЦИР\""]
["Доля педагогических работников, имеющих первую и высшую квалификационные категории, в общей численности педагогических работников, не менее","устан.",null,null,1,1,1,1,1,1,1,1,1,1,1,1,1,1,1,1,1,1,1,1,1]
[null,"исполн.",null,null,1,1,1,1,1,1,1,1,1,1,1,1,1,1,1,1,1,1,1,1,1]
["Полнота выполнения основных общеобразовательных программ (по данным учреждения)","устан.",null,null,1,1,1,1,1,1,1,1,1,1,1,1,1,1,1,1,1,1,1,1,1]
[null,"исполн.",null,null,1,1,1,1,1,1,1,1,1,1,1,1,1,1,1,1,1,1,1,1,1]
["Доля обучающихся, имеющих положительные отметки по итогам учебного года, в общей численности обучающихся","устан.",null,null,1,1,1,1,1,1,1,1,1,1,1,1,1,1,1,1,1,1,1,1,1]
[null,"исполн.",null,null,1,1,1,1,1,1,1,1,1,1,1,1,1,1,1,1,1,1,1,1,1]
["Доля обучающихся 11(12) - х классов, успешно сдавших ЕГЭ, в общей численности обучающихся 11(12) классов, сдававших ЕГЭ","устан.",null,null,1,1,1,1,1,1,1,1,1,1,1,1]
[null,"исполн.",null,null,1,1,1,1,1,1,1,1,1,1,1,1]
["Численность обучающихся на 1 компьютер, используемый в образовательном процессе","устан.",null,null,1,1,1,1,1,1,1,1,1,1,1,1,1,1,1,1,1,1,1,1]
[null,"исполн.",null,null,1,1,1,1,1,1,1,1,1,1,1,1,1,1,1,1,1,1,1,1]
["Реализация программы духовно-нравственного воспитания обучающихся","устан.",null,null,1,1,1,1,1,1,1,1,1,1,1,1,1,1,1,1,1,1,1,1]
[null,"исполн.",null,null,1,1,1,1,1,1,1,1,1,1,1,1,1,1,1,1,1,1,1,1]
["Показатели, характеризующие объем муниципальной услуги"]
["Численность обучающихся, осваивающих программу общего образования","устан.",null,null,1,1,1,1,1,1,1,1,1,1,1,1,1,1,1,1,1,1,1,1,1]
[null,"исполн.",null,null,1,1,1,1,1,1,1,1,1,1,1,1,1,1,1,1,1,1,1,1,1]
["а также по присоединенному учреждению","устан.",null,null,null,1,null,null,1]
[null,"исполн.",null,null,null,1,null,null,1]
["Численность обучающихся, осваивающих программу дополнительного образования на базе данного образовательного учреждения (кроме занимающихся в центре дополнительного образования детей)","устан.",null,null,1,1,1,1,1,1,1,1,1,1,1,1,1,1,1,1,1,1,1,1,1]
[null,"исполн.",null,null,1,1,1,1,1,1,1,1,1,1,1,1,1,1,1,1,1,1,1,1,1]
["а также по присоединенному учреждению","устан.",null,null,null,1,null,null,1]
[null,"исполн.",null,null,null,1,null,null,1]
["Численность обучающихся, осваивающих программу дополнительного образования в центре дополнительного образования детей на базе данного образовательного учреждения","устан.",null,null,null,null,null,null,null,null,null,null,null,null,null,null,1,null,null,null,null,1]
[null,"исполн.",null,null,null,null,null,null,null,null,null,null,null,null,null,null,1,null,null,null,null,1]
["    Наименование показателя    ","Плановое значение показателя установлено / исполнено","n-2 год*","n-1 год*","СОШ №20","СОШ №22","СОШ №24","СОШ №25","СОШ №26","СОШ №27","СОШ №29","СОШ №32","СОШ №38","СОШ №44","СОШ №45","О(С)ОШ №1","Прогимназия ","НШ-ДС №2","НШ-ДС №37","НШ-ДС  №42","НШ-ДС  №43","НОШ №30","НОШ №35","НОШ №40","МУК \"ЦИР\""]
["Муниципальная услуга «Организация и обеспечение отдыха и оздоровления детей»"]
["Показатели, характеризующие качество оказания муниципальной услуги:"]
["Количество подтвержденных жалоб потребителей на нарушение стандарта качества оказания муниципальной услуги","устан.",null,null,1,1,1,1,1,1,1,1,1,1,1,null,1,1,1,1,1,1,1,1,1]
[null,"исполн.",null,null,1,1,1,1,1,1,1,1,1,1,1,null,1,1,1,1,1,1,1,1,1]
["Показатели, характеризующие объем муниципальной услуги"]
["Численность детей, получающих муниципальную услугу в оздоровительных лагерях с дневным пребыванием детей на базе образовательного учреждения, всего","устан.",null,null,1,1,1,1,1,1,1,1,1,1,1,null,1,1,1,1,1,1,1,1,1]
[null,"исполн.",null,null,1,1,1,1,1,1,1,1,1,1,1,null,1,1,1,1,1,1,1,1,1]
["в том числе"]
["весна","устан.",null,null,1,1,1,null,1,1,1,1,1,1,1,null,null,1,null,null,1,null,null,1,1]
[null,"исполн.",null,null,1,1,1,null,1,1,1,1,1,1,1,null,null,1,null,null,1,null,null,1,1]
["лето","устан.",null,null,1,1,1,1,1,1,null,null,1,1,null,null,1,1,1,null,1,1,null,1,1]
[null,"исполн.",null,null,1,1,1,1,1,1,null,null,1,1,null,null,1,1,1,null,1,1,null,1,1]
["лето (присоединенное учреждение)","устан.",null,null,null,1,null,null,1]
[null,"исполн.",null,null,null,1,null,null,1]
["осень","устан.",null,null,1,1,1,1,1,1,1,1,1,1,1,null,null,null,1,1,1,1,1,null,1]
[null,"исполн.",null,null,1,1,1,1,1,1,1,1,1,1,1,null,null,null,1,1,1,1,1,null,1]
["Численность детей, получающих муниципальную  услугу в рамках выездных образовательных и тематических программ (проектов)","устан."]
[null,"исполн."]
["Релультаты оценки выполнения муниципального задания:"]
["общее число показателей, по которым установлено муниципальное задание",null,null,null,{"$f":"E115+E117+E119+E121+E124+E126+E128+E130+E132+E136+E139+E141+E145+E147+E149+E151+E153+E155+E158+E164+E166+E168+E171+E173+E175+E177+E179+E181+E184+E186+E188+E190+E192+E197+E200+E203+E205+E207+E209+E211","v":24},27,24,23,37,24,23,23,24,24,23,19,32,32,32,31,33,23,21,22,21]
["число показателей, по которым исполнено муниципальное задание (в том числе признано исполненым с учетом объективных факторов)",null,null,null,{"$f":"E116+E118+E120+E122+E125+E127+E129+E131+E133+E137+E140+E142+E146+E148+E150+E152+E154+E156+E159+E165+E167+E169+E172+E174+E176+E178+E180+E182+E185+E187+E189+E191+E193+E198+E201+E204+E206+E208+E210+E212","v":24},26,24,23,36,24,22,23,24,24,23,19,31,29,31,31,32,22,21,22,21]
["доля показателей, по которым исполнено муниципальное задание, в общем числе установленных показателей",null,null,null,{"$f":"E215/E214*100","v":100},96,100,100,97,100,96,100,100,100,100,100,97,91,97,100,97,96,100,100,100]
["ПРОЦЕНТ ИСПОЛНЕНИЯ МУНИЦИПАЛЬНОГО ЗАДАНИЯ:\n\"исполнено\" - 100% \"не исполнено\" - 0%",null,null,null,100,100,100,100,100,100,100,100,100,100,100,100,100,100,100,100,100,100,100,100,100]
[]
[]
["Условные обозначения:",null,null,null,1,"\"да\""]
[null,null,null,null,0,"\"нет\""]
[null,null,null,null,null,"плановое значение не устанавливалось"]
["Объективные факторы - причины, позволившие считать показатель исполненным при фактическом исполнении менее 95%:",null,null,null,"1 1  ","наличие внешних совместителей обусловлено объективными факторами"]
[null,null,null,null,"1 2  ","отказ родителей (законных представителей) 3-х детей от получения услуги в рамках выездной тематической программы \"Эрудит\" (детский оздоровительный лагерь \"Абзаково\", Челябинская область)"]
[]
[null,null,null,null,null,null,null,null,null,null,"____________",null,null,"А.Н. Томазова",null,null,null,null,null,"____________",null,null,"И.П. Замятина",null,null,null,null,null,"____________",null,null,"Е.В. Коркунова",null,null,null,null,null,"____________",null,null,"Е.М. Харева"]
[]
[null,null,null,null,null,null,null,null,null,null,"____________",null,null,"Л.Г. Соловей",null,null,null,null,null,"____________",null,null,"Ф.Г. Биргулиева",null,null,null,null,null,"____________",null,null,"Е.Е. Гапонова",null,null,null,null,null,"____________",null,null,"И.В. Толстова"]
[]
[null,null,null,null,null,null,null,null,null,null,"____________",null,null,"Е.Ф. Рычапова",null,null,null,null,null,"____________",null,null,"Э.Х. Болдырева",null,null,null,null,null,"____________",null,null,"Е.А. Рубекина"]